Cogmind - Beta 13 @@@ ROGUE MODE // 2024.08.02 @ 06:13:44 Player: CatgirlLyra Result: Destroyed by B-75 Beast with Heavy Machine Gun Performance ------------- Evolutions (5) 2500 Regions Visited (14) 2800 Robots Destroyed (231) 1155 Value Destroyed (8187) 8187 Prototype IDs (23) 460 Alien Tech Used (0) 0 Bonus (873) 873 TOTAL SCORE: 15975 Bonus ------- High Alert Combat Kills 573 Met Data Miner 300 Cogmind --------- Core Integrity 0/1000 Matter 233/300 Energy 10/100 System Corruption 18% Temperature Cool (12) Movement Rolling (145) Ox3 Location -5/Upper Caves Parts ------- > --- POWER (2) -------- (None) > --- PROPULSION (6) --- Armored Huge Wheel Antigrav System Antigrav System > --- UTILITY (7) ------ Huge Storage Unit Advanced Signal Interpreter > --- WEAPON (2) ------- Long-range Proton Cannon > --- INVENTORY (25) --- Improved Deuterium Engine Light Angular Momentum Engine Light Angular Momentum Engine Fusion Compressor Neutrino Core Micro Fission Core Light Antimatter Reactor Compact Battery (200) Cloaking Device Improved Component Analysis Suite Long-range Tractor Beam High-powered Shock Rifle Tesla Rifle Heavy Laser KE Penetrator Heavy Shock Bomb Launcher Tesla Bomb Launcher Power Sword Peak State ------------ > --- POWER ------------ Improved Deuterium Engine Light Angular Momentum Engine > --- PROPULSION ------- Armored Huge Wheel Armored Huge Wheel Armored Huge Wheel > --- UTILITY ---------- Advanced Heat Sink Advanced Heat Sink Huge Storage Unit Advanced Signal Interpreter Improved Light Armor Plating Improved Medium Armor Plating Remote Force Field > --- WEAPON ----------- Force Rifle Force Rifle > --- INVENTORY -------- Light Angular Momentum Engine Light Angular Momentum Engine Fusion Compressor Enhanced Fission Core Light Antimatter Reactor Armored Huge Wheel Antigrav System Antigrav System Power Amplifier Advanced Heat Sink Compact Battery Cloaking Device Improved Component Analysis Suite Long-range Tractor Beam High-powered Shock Rifle Tesla Rifle Wave Gun Variable Charge Gun Long-range Proton Cannon KE Penetrator Heavy Shock Bomb Launcher Tesla Bomb Launcher Greatsword [Rating: 87] Favorites ----------- Power F-cell Engine Engine F-cell Engine Power Core Enhanced Fission Core Propulsion Armored Huge Wheel Treads Light Treads Leg Titanium Leg Wheel Armored Huge Wheel Hover Unit Antigrav System Flight Unit Nuclear Pulse Thruster Utility High-capacity Storage Unit Device Improved Heat Sink Storage High-capacity Storage Unit Processor Advanced Targeting Computer Hackware System Shield Protection Improved Medium Armor Plating Weapon Improved Assault Rifle Energy Gun Gatling Laser Energy Cannon Advanced Beam Cannon Ballistic Gun Improved Assault Rifle Ballistic Cannon Mass Driver Launcher Rocket Launcher Impact Weapon Heavy Mace Slashing Weapon Greatsword Build | -11 -10 -9 -9 -8 -7 -7 -7 -7 -6 -6 -6 -5 -5 -5 ------- Run | Yrd Mat Mat Sto Mat Fac Low Low Dat Pro Fac Low Fac Upp Upp Slots Evolved 10 | . . 2 . 2 2 . . . . 2 . 2 . . Power 1 | . . . . . . . . . . 1 . . . . Propulsion 4 | . . 1 . 1 1 . . . . 1 . . . . Utility 5 | . . 1 . 1 1 . . . . . . 2 . . Weapon . | . . . . . . . . . . . . . . . Parts Attached 260 | 6 7 20 23 7 17 12 10 2 7 56 5 64 12 12 Power 31 | 1 1 3 3 . . . 1 . 1 7 . 12 1 1 Engine 20 | 1 1 2 3 . . . 1 . 1 3 . 8 . . Core 11 | . . 1 . . . . . . . 4 . 4 1 1 Reactor . | . . . . . . . . . . . . . . . Propulsion 54 | 2 1 7 6 2 8 2 . . 1 9 . 11 1 4 Treads 26 | 2 1 1 5 2 8 . . . 1 5 . . . 1 Leg 9 | . . 6 1 . . . . . . . . 2 . . Wheel 16 | . . . . . . 2 . . . 3 . 9 1 1 Hover 2 | . . . . . . . . . . . . . . 2 Flight 1 | . . . . . . . . . . 1 . . . . Utility 80 | 1 2 3 8 3 7 2 3 . 3 16 5 23 2 2 Device 33 | . 1 1 1 1 3 . 1 . 1 5 2 14 2 1 Storage 10 | 1 1 . 2 . . . . . . 3 1 2 . . Processor 8 | . . . . . 1 . 1 . . 3 2 1 . . Hackware 1 | . . . . 1 . . . . . . . . . . Protection 28 | . . 2 5 1 3 2 1 . 2 5 . 6 . 1 Artifact . | . . . . . . . . . . . . . . . Weapon 95 | 2 3 7 6 2 2 8 6 2 2 24 . 18 8 5 Energy Gun 30 | 2 . 5 1 . 2 4 2 1 . 1 . 8 3 1 Energy Cannon 15 | . . . 1 . . . 2 1 1 9 . . . 1 Ballistic Gun 20 | . 3 . 4 1 . . . . . 4 . 4 2 2 Ballistic Cannon 1 | . . . . . . . . . . . . 1 . . Launcher 24 | . . 2 . 1 . 4 1 . 1 8 . 3 3 1 Special Weapon . | . . . . . . . . . . . . . . . Impact Weapon 1 | . . . . . . . 1 . . . . . . . Slashing Weapon 4 | . . . . . . . . . . 2 . 2 . . Piercing Weapon . | . . . . . . . . . . . . . . . Special Melee Weapon . | . . . . . . . . . . . . . . . Unidentified Prototypes 8 | . . 1 3 . . . . . . 1 . 3 . . Corrupted Parts 1 | . . . . . . . . . . . . . . 1 System Corruption 7 | . . . . . . . . . . . . . . 7 Parts Lost 76 | . 1 . . . 2 5 1 . 4 26 . 16 7 14 Power 12 | . . . . . . . 1 . . 5 . 3 1 2 Propulsion 20 | . . . . . 1 3 . . 1 7 . 4 2 2 Utility 26 | . . . . . 1 2 . . 3 5 . 6 2 7 Weapon 18 | . 1 . . . . . . . . 9 . 3 2 3 Highest Loss Streak 23 | . 1 . . . 1 4 1 . 4 23 . 8 4 13 To Critical Strikes 3 | . . . . . . . . . . 2 . 1 . . Average Slot Usage (%) 86 | . 97 99 99 90 97 93 80 69 83 66 39 73 74 73 Engine 8 | . 14 10 10 9 7 7 7 7 7 7 . 7 5 2 Treads 14 | . 28 3 18 36 37 31 7 7 6 2 . . . 2 Leg 4 | . . 29 14 . . . . . . . . . . . Wheel 6 | . . . . . . . 15 15 15 13 . 16 11 9 Device 10 | . 11 11 11 9 7 6 1 7 12 7 6 13 18 20 Storage 8 | . 14 11 11 9 7 7 7 7 7 5 5 4 5 5 Processor 4 | . . . . . 7 7 7 7 7 6 18 8 5 5 Protection 8 | . . 11 11 9 12 15 16 15 9 6 1 6 7 3 Energy Gun 6 | . 5 20 3 . 2 12 10 . 7 . . 6 7 5 Energy Cannon 2 | . . . 8 . . . 3 . 6 5 . . . . Ballistic Gun 7 | . 22 1 9 17 11 . . . . 4 . 1 2 4 Naked Turns 2 | . . . . . . . . . . 2 . . . . Heaviest Build 133 | 13 30 44 100 76 75 72 75 67 69 128 6 132 133 132 Greatest Support 112 | 40 40 60 69 89 112 103 56 56 56 84 6 84 84 56 Greatest Overweight (x) 4 | 1 . 2 1 . . 1 1 1 1 3 . 3 4 2 Average Overweight (x) . | . . . . . . . 1 1 1 . . . 2 2 Largest Inventory Capacity 25 | 8 15 15 25 20 20 20 20 20 20 25 8 25 25 25 Average Capacity 19 | 6 12 15 17 20 20 20 20 20 20 20 7 23 25 25 Most Carried 25 | 5 13 15 20 20 20 20 20 19 19 20 8 25 24 24 Average Carried 16 | 4 8 14 16 19 19 19 17 18 17 16 7 19 20 21 Final Capacity 25 | 8 15 15 20 20 20 20 20 20 20 5 8 25 25 25 Final Carried 24 | 5 13 15 20 20 20 16 17 17 18 5 8 24 19 18 Class Distribution -------------------- 79% | Mutant 20% | Scavenger-Mutant Dominant Class ---------------- Mutant | -10/Materials Mutant | -9/Materials Mutant | -9/Storage Mutant | -8/Materials Scavenger-Mutant | -7/Factory Scavenger-Mutant | -7/Lower Caves Mutant | -7/Lower Caves Mutant | -7/Data Miner Mutant | -6/Proximity Caves Mutant | -6/Factory Mutant | -6/Lower Caves Mutant | -5/Factory Scavenger-Mutant | -5/Upper Caves Scavenger-Mutant | -5/Upper Caves Resources | -11 -10 -9 -9 -8 -7 -7 -7 -7 -6 -6 -6 -5 -5 -5 ----------- Run | Yrd Mat Mat Sto Mat Fac Low Low Dat Pro Fac Low Fac Upp Upp Matter Collected 5153 | 232 305 208 406 406 629 238 126 . 114 835 51 1286 214 103 Remotely 908 | . . . . . . . . . . 452 . 456 . . Salvage Created 9137 | 47 608 883 1331 440 809 371 168 . 169 1274 . 2106 781 150 Parts 483 | 5 34 58 73 39 39 15 4 . 4 98 . 84 23 7 Haulers Intercepted 13 | . 1 4 5 2 . . . . . . . 1 . . Recyclers Shooed 9 | . . . 1 . . . . . . 7 . 1 . . Parts Field Recycled . | . . . . . . . . . . . . . . . Retrieved Matter . | . . . . . . . . . . . . . . . Parts Self-Destructed 43 | . . . . . . 11 3 . 5 . . . 22 2 Prevented 9 | . . . . . . . 1 . . . . . 4 4 Kills | -11 -10 -9 -9 -8 -7 -7 -7 -7 -6 -6 -6 -5 -5 -5 ------- Run | Yrd Mat Mat Sto Mat Fac Low Low Dat Pro Fac Low Fac Upp Upp Combat Hostiles Destroyed 176 | . 16 16 26 9 14 14 4 . 4 31 . 27 13 2 Melee 1 | . . . . . . . . . . . . 1 . . Guns 102 | . 15 12 17 5 13 8 1 . 2 5 . 14 9 1 Cannons 19 | . . . 8 . . . . . 1 6 . 4 . . AOE 47 | . . 4 . 4 . 6 3 . 1 20 . 5 4 . Classes Destroyed 19 | 1 3 5 1 1 1 . 2 . . 5 . . . . Worker 13 | . . . 1 . . . . . . 6 . 6 . . Builder 12 | . . 1 . 1 . . . . . 8 . 2 . . Tunneler 2 | 2 . . . . . . . . . . . . . . Hauler 13 | . 1 4 5 2 . . . . . . . 1 . . Recycler 5 | . . . . . . . . . . 4 . 1 . . Minesweeper 1 | . . . . . . . 1 . . . . . . . Mechanic 2 | . . . . . . . . . . 2 . . . . Operator 2 | . . 1 . . . . . . . 1 . . . . Watcher 5 | . . 1 1 1 1 . . . . 1 . . . . Swarmer 37 | . 3 4 6 4 . 7 . . 1 8 . . 4 . Grunt 67 | . 13 6 9 1 6 4 2 . 2 1 . 18 5 . Brawler 3 | . . . . . . . 1 . . 1 . . 1 . Duelist 7 | . . 1 . . . 2 . . . 2 . . 2 . Protector 2 | . . . . . . . . . . 2 . . . . Sentry 37 | . . 5 11 3 6 1 1 . 1 2 . 5 1 1 Specialist 3 | . . . . . . . . . . 3 . . . . Hunter 5 | . . . . 1 . . . . . 3 . 1 . . Programmer 14 | . . . . . 2 . . . . 8 . 3 . 1 Heavy 1 | . . . . . . . . . . 1 . . . . Best Kill Streak 14 | 2 3 6 6 5 8 5 4 . 4 14 . 14 4 1 Combat Bots Only 10 | . 3 4 6 4 8 5 4 . 4 10 . 9 4 1 Max Kills in Single Turn 8 | 1 1 5 2 5 1 3 2 . 1 5 . 8 3 1 Gunslinging 1 | . . 1 1 . . . . . . . . . 1 . Exploded 5 | . . 4 . 4 . 3 2 . 1 5 . 2 3 . Melee 1 | . . . . . . . . . . . . 1 . . Uniques/NPCs Destroyed . | . . . . . . . . . . . . . . . Combat | -11 -10 -9 -9 -8 -7 -7 -7 -7 -6 -6 -6 -5 -5 -5 -------- Run | Yrd Mat Mat Sto Mat Fac Low Low Dat Pro Fac Low Fac Upp Upp Hostile Shots Fired 1634 | . 73 44 113 42 250 92 27 . 85 441 1 297 104 65 Missed 539 | . 13 19 34 10 91 37 11 . 30 154 . 91 35 14 Damage Taken 16748 | . 676 365 1059 474 1503 745 358 . 463 4335 19 4116 1469 1166 Core 2279 | . 124 53 136 72 74 18 13 . 36 727 19 576 211 220 Absorbed by Shields 607 | . . . . . . . . . . 125 . 257 225 . Ignored by Resistances 66 | . . . . . 45 12 9 . . . . . . . Regen/Repaired (Parts) 1095 | . . . . . . . . . . 417 . 678 . . Core Remaining (%) 63 | 100 50 . 52 86 . . . . 79 . 12 . . . Volleys Fired 557 | 7 58 50 83 41 64 16 6 . 9 72 . 93 37 21 Largest 2 | 2 2 2 2 2 2 2 2 . 2 2 . 2 2 2 Hottest 162 | 90 90 112 112 46 160 160 160 . 110 145 . 162 160 161 Shots Fired 1087 | 13 115 100 166 77 128 30 10 . 18 139 . 178 73 40 Gun 862 | 13 115 98 104 72 128 22 4 . 10 58 . 132 70 36 Cannon 170 | . . . 62 . . . 3 . 6 61 . 38 . . Launcher 55 | . . 2 . 5 . 8 3 . 2 20 . 8 3 4 Special . | . . . . . . . . . . . . . . . Kinetic 478 | . 79 . 62 72 114 . . . . 57 . 76 2 16 Thermal 547 | 13 36 98 104 . 14 22 7 . 16 55 . 94 68 20 Explosive 38 | . . . . 5 . 8 3 . 2 20 . . . . Electromagnetic 24 | . . 2 . . . . . . . 7 . 8 3 4 Robot Hit Streak 27 | 10 11 15 16 9 27 8 10 . 25 18 . 15 13 16 Robot Miss Streak 9 | 2 9 3 4 3 4 3 1 . . 2 . 5 2 1 Penetration Max 1 | . . . . . . . . . . 1 . 1 . . Secondary Targets 5 | . . 1 1 . 1 . . . . . . . 2 . Max Gunslinging Chain 1 | . . 1 1 . 1 . . . . . . . 1 . Shots Hit Robots 765 | 10 63 67 116 51 110 26 8 . 15 84 . 126 55 34 Core Hits 494 | 3 28 29 41 23 46 37 13 . 9 141 . 94 27 3 Critical Kills 2 | . . . . . . . . . . . . 1 . 1 Critical Parts Destroyed 6 | . . . . . 1 . . . . . . 1 3 1 Critical Strikes 27 | 1 . 4 4 . 2 . . . 1 . . 8 4 3 Burn 14 | 1 . 4 4 . . . . . 1 . . 3 . 1 Destroy 10 | . . . . . 2 . . . . . . 2 4 2 Blast 2 | . . . . . . . . . . . . 2 . . Sever 1 | . . . . . . . . . . . . 1 . . Melee Attacks 7 | . . . . . . . . . . 2 . 5 . . Impact . | . . . . . . . . . . . . . . . Slashing 7 | . . . . . . . . . . 2 . 5 . . Piercing . | . . . . . . . . . . . . . . . Sneak Attacks 2 | . . . . . . . . . . 1 . 1 . . Combat Hostiles . | . . . . . . . . . . . . . . . Follow-up Attacks . | . . . . . . . . . . . . . . . Damage Inflicted 23412 | 96 801 1359 2098 1001 1831 1243 413 . 362 6670 . 5176 1452 910 Guns 12263 | 96 795 1183 1297 748 1831 508 96 . 151 849 . 2612 1312 785 Cannons 2680 | . . . 781 . . . 24 . 94 951 . 830 . . Explosions 7977 | . . 168 . 228 . 735 293 . 117 4779 . 1392 140 125 Melee 398 | . . . . . . . . . . 82 . 316 . . Ramming 94 | . 6 8 20 25 . . . . . 9 . 26 . . Kinetic 6282 | . 595 . 743 748 1486 . . . . 849 . 1549 . 312 Thermal 8748 | 96 200 1225 1335 . 345 508 120 . 245 795 . 2094 1312 473 Explosive 6152 | . . . . 228 . 735 293 . 117 4779 . . . . Electromagnetic 1738 | . . 126 . . . . . . . 156 . 1191 140 125 Impact . | . . . . . . . . . . . . . . . Slashing 398 | . . . . . . . . . . 82 . 316 . . Piercing . | . . . . . . . . . . . . . . . Highest Corruption 18 | . . . . . 5 5 5 5 5 8 8 6 11 18 Average Corruption 5 | . . . . . 3 5 5 5 5 4 8 5 9 16 Corruption Purged . | . . . . . . . . . . . . . . . Corruption Blocked . | . . . . . . . . . . . . . . . Effects 135 | . . . . . 9 17 12 2 13 21 4 27 17 13 Message Errors 34 | . . . . . 3 2 6 . 4 6 . 5 3 5 Matter Fused 29 | . . . . . 2 7 2 . 2 5 . 6 2 3 Heat Flow Errors 10 | . . . . . . 2 . 1 1 1 2 2 1 . Energy Discharges 16 | . . . . . 3 3 1 . . 2 . 3 2 2 Parts Rejected 2 | . . . . . . . . . . 1 . 1 . . Parts Fused 1 | . . . . . . . . . . . . 1 . . Data Loss (minor) 19 | . . . . . 1 2 2 1 3 1 1 4 4 . Data Loss (major) 5 | . . . . . . . . . 1 2 . 2 . . Misfires 7 | . . . . . . . 1 . 1 2 . . 2 1 Alerts 5 | . . . . . . . . . 1 . 1 2 1 . Weapon Failures 7 | . . . . . . 1 . . . 1 . 1 2 2 Overload Shots . | . . . . . . . . . . . . . . . Overflow Damage 241 | . . . . . . 17 . . . 166 . 58 . . Projectiles 10 | . . . . . . . . . . 9 . 1 . . Explosions 163 | . . . . . . 17 . . . 145 . 1 . . Melee 68 | . . . . . . . . . . 12 . 56 . . Knockbacks 7 | . . . . . . . . . . 1 . 6 . . Impact 1 | . . . . . . . . . . 1 . . . . Kinetic 6 | . . . . . . . . . . . . 6 . . Secondary . | . . . . . . . . . . . . . . . Self-Inflicted Damage 417 | . . . . 5 . 17 . . 37 169 . 129 60 . Shots 20 | . . . . 1 . 1 . . 2 6 . 7 3 . Rammed 9 | . 2 . . 2 . . . . . 2 . 3 . . Targets Rammed 12 | . 2 1 2 2 . . . . . 2 . 3 . . Kicked 3 | . . 1 2 . . . . . . . . . . . Crushed . | . . . . . . . . . . . . . . . Highest Temperature 397 | 172 395 72 397 . 138 293 165 60 123 216 113 178 164 81 Average Temperature 58 | 85 138 19 45 . 56 110 60 40 28 42 61 61 18 36 Received Heat Transfer 4147 | . 336 108 387 99 504 174 108 . 165 386 27 1274 429 150 Effects 3 | . 1 . 1 . . 1 . . . . . . . . Shutdowns 1 | . 1 . . . . . . . . . . . . . Energy Bleed 1 | . . . . . . 1 . . . . . . . . Short Circuit 1 | . . . 1 . . . . . . . . . . . Siege Activations . | . . . . . . . . . . . . . . . Robots Corrupted 4 | . . . . . . . . . . . . 3 . 1 Combat Hostiles 4 | . . . . . . . . . . . . 3 . 1 Parts Fried 9 | . . 1 . . . . . . . . . 7 . 1 Impact Corruptions . | . . . . . . . . . . . . . . . Robots Melted 3 | . 1 . 1 . 1 . . . . . . . . . Combat Hostiles 3 | . 1 . 1 . 1 . . . . . . . . . Parts Melted 41 | . . 5 14 . 1 2 . . . . . 14 5 . Heat Transferred 16316 | 334 521 2862 2923 . 775 1150 262 . 555 925 . 3234 2035 740 Parts Sabotaged . | . . . . . . . . . . . . . . . Parts Stolen . | . . . . . . . . . . . . . . . Parts Stripped . | . . . . . . . . . . . . . . . Power Chain Reactions 5 | . . 1 . . . . . . . . . 4 . . Alert | -11 -10 -9 -9 -8 -7 -7 -7 -7 -6 -6 -6 -5 -5 -5 ------- Run | Yrd Mat Mat Sto Mat Fac Low Low Dat Pro Fac Low Fac Upp Upp Peak Influence 770 | 10 247 335 770 352 366 . . . . 661 . 641 . . Initial 261 | . 6 12 111 144 100 . . . . . . 261 . . Average 277 | 3 85 139 515 235 244 . . . . 289 . 362 . . Maximum Alert Level 3 | . 1 1 3 1 1 . . . . 2 . 2 . . Low Security (%) 41 | 100 94 69 7 31 37 . . . . 32 . 19 . . Level 1 32 | . 5 30 19 68 62 . . . . 32 . 32 . . Level 2 25 | . . . 68 . . . . . . 34 . 48 . . Level 3 . | . . . 5 . . . . . . . . . . . Level 4 . | . . . . . . . . . . . . . . . Level 5 . | . . . . . . . . . . . . . . . High Security . | . . . . . . . . . . . . . . . Max Security . | . . . . . . . . . . . . . . . Squads Dispatched 33 | . 2 2 3 . 8 . 1 . . 10 . 7 . . Investigation 4 | . 1 1 1 . 1 . . . . . . . . . Extermination 7 | . . . . . 2 . . . . 3 . 2 . . Reinforcement 12 | . 1 1 2 . . . . . . 6 . 2 . . Assault 2 | . . . . . . . 1 . . 1 . . . . Garrison 8 | . . . . . 5 . . . . . . 3 . . Intercept . | . . . . . . . . . . . . . . . Searches Triggered . | . . . . . . . . . . . . . . . Construction Impeded 3 | . . . . . . . . . . 3 . . . . Haulers Reinforced 3 | . . . . . . . . . . 1 . 2 . . Active Scanning Responses . | . . . . . . . . . . . . . . . Cargo Convoy Interrupts 1 | . . . . . . . . . . 1 . . . . Stealth | -11 -10 -9 -9 -8 -7 -7 -7 -7 -6 -6 -6 -5 -5 -5 --------- Run | Yrd Mat Mat Sto Mat Fac Low Low Dat Pro Fac Low Fac Upp Upp Distress Signals 14 | . 1 1 4 3 . . . . . 1 . 4 . . Communications Jammed . | . . . . . . . . . . . . . . . Distress Signals . | . . . . . . . . . . . . . . . Times Spotted 252 | . 23 20 34 15 20 13 11 . 6 54 1 36 16 3 Peak Tracking Total 12 | . 3 5 5 6 5 4 10 . 5 12 2 11 9 1 Tactical Retreats 12 | . 2 . 1 1 . . 2 . 1 2 . 2 1 . Traps | -11 -10 -9 -9 -8 -7 -7 -7 -7 -6 -6 -6 -5 -5 -5 ------- Run | Yrd Mat Mat Sto Mat Fac Low Low Dat Pro Fac Low Fac Upp Upp Traps Triggered 7 | . 1 1 2 . 1 . . . . . . 2 . . Indirectly 1 | . . . . . . . . . . . . 1 . . Trap Hack Attempts . | . . . . . . . . . . . . . . . Triggered . | . . . . . . . . . . . . . . . Disarmed . | . . . . . . . . . . . . . . . Reprogrammed . | . . . . . . . . . . . . . . . Reused 3 | . . . . . . . 3 . . . . . . . Traps Extracted . | . . . . . . . . . . . . . . . Installed 4 | . . . . . . . 4 . . . . . . . Triggered 3 | . . . . . . . 3 . . . . . . . Most Traps Carried 4 | . . . . . . . 4 . . . . . . . Machines | -11 -10 -9 -9 -8 -7 -7 -7 -7 -6 -6 -6 -5 -5 -5 ---------- Run | Yrd Mat Mat Sto Mat Fac Low Low Dat Pro Fac Low Fac Upp Upp Machines Disabled 20 | . . . 4 2 . . . . . 5 . 9 . . Max in Single Turn 4 | . . . 1 1 . . . . . 1 . 4 . . Garrison Access 1 | . . . . . 1 . . . . . . . . . Machines Repaired . | . . . . . . . . . . . . . . . Machines Dismantled . | . . . . . . . . . . . . . . . Machines Sabotaged . | . . . . . . . . . . . . . . . Overloaded Fab Kills . | . . . . . . . . . . . . . . . Hacking | -11 -10 -9 -9 -8 -7 -7 -7 -7 -6 -6 -6 -5 -5 -5 --------- Run | Yrd Mat Mat Sto Mat Fac Low Low Dat Pro Fac Low Fac Upp Upp Machines Accessed 65 | . 7 7 11 10 5 2 . 4 . 8 1 10 . . Terminals 44 | . 6 6 9 8 3 1 . . . 5 . 6 . . Fabricators 1 | . . . . . . . . . . . . 1 . . Repair Stations 8 | . 1 . 2 . . . . . . 2 . 3 . . Recycling Units 2 | . . . . 1 . . . . . 1 . . . . Scanalyzers 2 | . . 1 . 1 . . . . . . . . . . Garrison Access 2 | . . . . . 2 . . . . . . . . . Total Hacks 202 | . 30 24 32 26 10 8 . 32 . 16 1 23 . . Successful 109 | . 16 10 10 12 3 8 . 32 . 8 1 9 . . Failed 92 | . 13 14 22 14 7 . . . . 8 . 14 . . Catastrophic 19 | . . 2 6 2 2 . . . . 3 . 4 . . Database Lockouts 1 | . 1 . . . . . . . . . . . . . Manual 59 | . 21 13 7 9 2 . . . . 1 . 6 . . Terminals 124 | . 28 21 29 18 5 2 . . . 7 . 14 . . Fabricators 1 | . . . . . . . . . . . . 1 . . Repair Stations 19 | . 2 . 3 . . . . . . 6 . 8 . . Recycling Units 4 | . . . . 1 . . . . . 3 . . . . Scanalyzers 10 | . . 3 . 7 . . . . . . . . . . Garrison Access 5 | . . . . . 5 . . . . . . . . . Terminal Hacks 78 | . 13 5 9 3 2 8 . 32 . 2 1 3 . . Record 19 | . . . . . . 8 . 11 . . . . . . Part Schematic 12 | . 1 . . . . . . 11 . . . . . . Robot Schematic 7 | . . . . . . . . 7 . . . . . . Robot Analysis 8 | . 5 2 1 . . . . . . . . . . . Prototype ID Bank 6 | . 2 . . 1 . . . 3 . . . . . . Open Door 3 | . . . 2 . . . . . . . 1 . . . Open DSF 1 | . . . . . 1 . . . . . . . . . Branch Access Points 2 | . . 1 . . . . . . . 1 . . . . Terminal Index 5 | . 1 1 1 1 1 . . . . . . . . . Scanalyzer Index 1 | . 1 . . . . . . . . . . . . . Alert Level 3 | . 1 . 1 . . . . . . . . 1 . . Unreport Threat 3 | . . . 2 . . . . . . . . 1 . . Locate Traps 2 | . . . 1 1 . . . . . . . . . . Recall Investigation 1 | . 1 . . . . . . . . . . . . . Hauler Manifests 2 | . 1 1 . . . . . . . . . . . . Registered Components 1 | . . . 1 . . . . . . . . . . . Zone Layout 2 | . . . . . . . . . . 1 . 1 . . Fabricator Hacks . | . . . . . . . . . . . . . . . Repair Station Hacks 12 | . 1 . 1 . . . . . . 4 . 6 . . Scan Component 7 | . 1 . 1 . . . . . . 2 . 3 . . Repair 5 | . . . . . . . . . . 2 . 3 . . Recycling Unit Hacks 3 | . . . . 1 . . . . . 2 . . . . Report Inventory 1 | . . . . 1 . . . . . . . . . . Retrieve Matter 1 | . . . . . . . . . . 1 . . . . Retrieve Components 1 | . . . . . . . . . . 1 . . . . Scanalyzer 9 | . . 3 . 6 . . . . . . . . . . Insert Component 5 | . . 2 . 3 . . . . . . . . . . Analyze 4 | . . 1 . 3 . . . . . . . . . . Garrison Access Hacks 1 | . . . . . 1 . . . . . . . . . Seal Access 1 | . . . . . 1 . . . . . . . . . Unauthorized Hacks 6 | . 2 2 . 2 . . . . . . . . . . Terminals 6 | . 2 2 . 2 . . . . . . . . . . Botnet 6 | . 2 2 . 2 . . . . . . . . . . Fabricators . | . . . . . . . . . . . . . . . Repair Stations . | . . . . . . . . . . . . . . . Recycling Units . | . . . . . . . . . . . . . . . Scanalyzers . | . . . . . . . . . . . . . . . Garrison Access . | . . . . . . . . . . . . . . . Data Cores Recovered 1 | . . 1 . . . . . . . . . . . . Used . | . . . . . . . . . . . . . . . Hacking Detections 53 | . 7 7 11 8 3 . . . . 8 . 9 . . Full Trace Events 4 | . 1 . 2 . 1 . . . . . . . . . Feedback Events . | . . . . . . . . . . . . . . . Feedback Blocked . | . . . . . . . . . . . . . . . Robot Schematics Acquired 7 | . . . . . . . . 7 . . . . . . Robots Built . | . . . . . . . . . . . . . . . Authchips . | . . . . . . . . . . . . . . . Time . | . . . . . . . . . . . . . . . Total Robot Build Rating . | . . . . . . . . . . . . . . . Part Schematics Acquired 16 | . 1 1 . 3 . . . 11 . . . . . . Parts Built . | . . . . . . . . . . . . . . . Authchips . | . . . . . . . . . . . . . . . Time . | . . . . . . . . . . . . . . . Total Part Build Rating . | . . . . . . . . . . . . . . . Parts Repaired 5 | . . . . . . . . . . 2 . 3 . . Time 155 | . . . . . . . . . . 41 . 114 . . Parts Recycled . | . . . . . . . . . . . . . . . Recycled Matter . | . . . . . . . . . . . . . . . Retrieved Matter 136 | . . . . . . . . . . 136 . . . . Retrieved Components 10 | . . . . . . . . . . 10 . . . . Parts Scanalyzed 4 | . . 1 . 3 . . . . . . . . . . Part Schematics Acquired 4 | . . 1 . 3 . . . . . . . . . . Parts Damaged . | . . . . . . . . . . . . . . . Bothacking | -11 -10 -9 -9 -8 -7 -7 -7 -7 -6 -6 -6 -5 -5 -5 ------------ Run | Yrd Mat Mat Sto Mat Fac Low Low Dat Pro Fac Low Fac Upp Upp Used RIF Installer . | . . . . . . . . . . . . . . . Robots Hacked . | . . . . . . . . . . . . . . . Non-combat . | . . . . . . . . . . . . . . . Combat . | . . . . . . . . . . . . . . . Robot Hacks Applied . | . . . . . . . . . . . . . . . Relay Couplers Released . | . . . . . . . . . . . . . . . Fabnet Peak Effective % . | . . . . . . . . . . . . . . . Robots Rewired 2 | . . . . . . . 1 . . . . 1 . . Allies Hacked . | . . . . . . . . . . . . . . . Hacks Repelled . | . . . . . . . . . . . . . . . Allies | -11 -10 -9 -9 -8 -7 -7 -7 -7 -6 -6 -6 -5 -5 -5 -------- Run | Yrd Mat Mat Sto Mat Fac Low Low Dat Pro Fac Low Fac Upp Upp Total Allies 4 | . . . 1 . . . 1 . . . 1 1 . . Largest Group 1 | . . . 1 1 . . 1 1 1 . 1 1 . . Highest-Rated Group 135 | . . . 100 100 . . 16 16 16 . 135 49 . . Highest-Rated Ally 135 | . . . 100 100 . . 16 16 16 . 135 49 . . Total Orders . | . . . . . . . . . . . . . . . Ally Attacks 4 | . . . . . . . 1 . . . . 3 . . Total Damage 166 | . . . . . . . 18 . . . . 148 . . Kills . | . . . . . . . . . . . . . . . Allies Corrupted . | . . . . . . . . . . . . . . . Allies Melted . | . . . . . . . . . . . . . . . Intel | -11 -10 -9 -9 -8 -7 -7 -7 -7 -6 -6 -6 -5 -5 -5 ------- Run | Yrd Mat Mat Sto Mat Fac Low Low Dat Pro Fac Low Fac Upp Upp Robot Analysis Total 8 | . 5 2 1 . . . . . . . . . . . Derelict Logs Recovered 6 | . . . . . . 1 2 . 2 . . . 1 . Drone Launches . | . . . . . . . . . . . . . . . Drone Recoveries . | . . . . . . . . . . . . . . . Decoded 0b10 Intel 22 | . . . . . . . . . . . . 22 . . Traps 6 | . . . . . . . . . . . . 6 . . Items 11 | . . . . . . . . . . . . 11 . . Machines 4 | . . . . . . . . . . . . 4 . . Guards 1 | . . . . . . . . . . . . 1 . . Exploration | -11 -10 -9 -9 -8 -7 -7 -7 -7 -6 -6 -6 -5 -5 -5 ------------- Run | Yrd Mat Mat Sto Mat Fac Low Low Dat Pro Fac Low Fac Upp Upp Turns Passed 10967 | 93 1304 967 1336 979 683 754 523 127 675 1058 124 1652 458 234 Spaces Moved 6451 | 42 655 506 672 505 269 424 406 108 544 718 267 968 250 117 Core 152 | 10 . . . . . . . . . 142 . . . . Treads 2324 | 32 655 54 399 505 269 405 . . . 5 . . . . Legs 725 | . . 452 273 . . . . . . . . . . . Wheels 2869 | . . . . . . 19 406 108 544 492 . 933 250 117 Hover . | . . . . . . . . . . . . . . . Flight 381 | . . . . . . . . . . 79 267 35 . . Fastest Speed 40 | 50 160 120 130 160 160 115 115 115 115 40 40 40 115 130 Average Speed 127 | 142 160 128 148 160 160 159 115 115 115 94 40 111 130 130 Slowest Speed 260 | 160 160 260 240 160 160 240 115 115 115 240 40 145 160 130 Overloaded Moves . | . . . . . . . . . . . . . . . Propulsion Burnouts . | . . . . . . . . . . . . . . . Robots Hopped 4 | . . . . . . . . . . 4 . . . . Cave-ins Triggered . | . . . . . . . . . . . . . . . Exploration Rate (%) 46 | 4 90 54 81 38 9 65 56 75 77 26 33 20 42 26 Regions Visited 14 Branch Regions 8 Pre-discovered Areas 3 | . . . . . . 2 . 1 . . . . . . Known Exits Taken 5 | . . 1 . . . . . . . 1 1 1 1 . Unknown Exits Taken 9 | 1 1 . 1 1 1 1 1 1 1 . . . . . Scrap Searched 18 | . . . . . . 2 12 . 1 . 2 . 1 . Spaces Dug 32 | . . . . 21 . . . . . 11 . . . . Terrain Destroyed 301 | . . 3 . 44 . 48 26 . 13 141 . 24 2 . Melee . | . . . . . . . . . . . . . . . Projectile 43 | . . . . . . . . . . 22 . 19 2 . AOE 258 | . . 3 . 44 . 48 26 . 13 119 . 5 . . Terrain Rammed . | . . . . . . . . . . . . . . . Walls Destroyed . | . . . . . . . . . . . . . . . Machines Disabled . | . . . . . . . . . . . . . . . Actions | -11 -10 -9 -9 -8 -7 -7 -7 -7 -6 -6 -6 -5 -5 -5 --------- Run | Yrd Mat Mat Sto Mat Fac Low Low Dat Pro Fac Low Fac Upp Upp Total 8089 | 59 794 732 852 601 396 462 453 111 575 943 283 1363 306 159 Wait 460 | . 63 95 27 35 25 9 3 . 10 61 5 117 5 5 Move 6429 | 41 654 505 671 504 268 423 405 107 543 709 266 967 249 117 Hop 4 | . . . . . . . . . . 4 . . . . Pick Up 161 | 5 7 26 17 5 7 . 8 . 5 17 3 56 2 3 Fast Attach 98 | 6 3 9 11 2 6 1 6 . . 14 4 33 1 2 Attach 72 | . 1 2 . 1 5 3 1 2 4 22 . 20 5 6 Detach 18 | . . 2 . 1 1 1 . 2 . 2 1 7 . 1 Swap 90 | . 3 9 12 4 6 8 3 . 3 20 1 11 6 4 Drop 144 | . 3 33 29 6 14 1 11 . 1 18 3 24 1 . Fire 557 | 7 58 50 83 41 64 16 6 . 9 72 . 93 37 21 Melee 7 | . . . . . . . . . . 2 . 5 . . Ram 5 | . . . . . . . . . . 2 . 3 . . Kick 3 | . . 1 2 . . . . . . . . . . . Crush 4 | . 2 . . 2 . . . . . . . . . . Escape Stasis . | . . . . . . . . . . . . . . . Rewire 33 | . . . . . . . 6 . . . . 27 . . Trap 4 | . . . . . . . 4 . . . . . . . Miscellaneous . | . . . . . . . . . . . . . . . Route ------- -11/Scrapyard -10/Materials (discovered 4 exits: *Mat x3 / [*Min]) -9/Materials (discovered 3 exits: *Mat / *Min / *Sto) -9/Storage -8/Materials -7/Factory -7/Lower Caves -7/Lower Caves -7/Data Miner -6/Proximity Caves -6/Factory (discovered 3 exits: *Fac / *Low x2) -6/Lower Caves -5/Factory -5/Upper Caves -5/Upper Caves History --------- Turn | Location | Event 12 | -11/Scrapyard | Discovered new exit (range 16) 94 | -11/Scrapyard | Entered Materials 158 | -10/Materials | Discovered new exit (range 16) 304 | -10/Materials | Build established: Mutant 329 | -10/Materials | Discovered new exit (range 3) 1096 | -10/Materials | Discovered new exit (range 13) 1361 | -10/Materials | Central database locked down 1361 | -10/Materials | Discovered new exit (range 16) 1398 | -10/Materials | Entered another Materials area 1398 | -9/Materials | Evolved 2 slots: Propulsion x1, Utility x1 1734 | -9/Materials | Discovered new exit (range 7) 1925 | -9/Materials | Identified exit to Mines 1925 | -9/Materials | Identified exit to Storage 2365 | -9/Materials | Entered Storage 3580 | -9/Storage | Discovered new exit (range 16) 3586 | -9/Storage | Met 01-MTF 3701 | -9/Storage | Entered Materials 3701 | -8/Materials | Accompanied by 1 ally (01-MTF) 3701 | -8/Materials | Evolved 2 slots: Propulsion x1, Utility x1 3706 | -8/Materials | 01-MTF left 4380 | -8/Materials | Discovered new exit (range 11) 4680 | -8/Materials | Entered Factory 4680 | -7/Factory | Evolved 2 slots: Propulsion x1, Utility x1 4689 | -7/Factory | Identified exit to DSF 4797 | -7/Factory | Garrison activated, responded to threat 4880 | -7/Factory | Destroyed 8 combat bots 5142 | -7/Factory | Garrison activated, responded to threat 5158 | -7/Factory | Discovered new exit (range 15) 5168 | -7/Factory | Build established: Scavenger-Mutant 5348 | -7/Factory | Garrison activated, responded to threat 5363 | -7/Factory | Entered Lower Caves 5779 | -7/Lower Caves | Learned location of Armory (-3) 5779 | -7/Lower Caves | Learned Factory emergency access door positions 5779 | -7/Lower Caves | Learned Extension emergency access door positions 5779 | -7/Lower Caves | Learned Extension terminal intel 6044 | -7/Lower Caves | Attracted the attention of an 0b10 checkpoint 6051 | -7/Lower Caves | Discovered new exit (range 9) 6094 | -7/Lower Caves | Lost 4 parts (2n2u) 6117 | -7/Lower Caves | Entered another Lower Caves area 6344 | -7/Lower Caves | Build established: Mutant 6402 | -7/Lower Caves | Learned Factory interactive machine intel 6419 | -7/Lower Caves | Attracted the attention of an 0b10 outpost 6535 | -7/Lower Caves | Learned Factory emergency access door positions 6586 | -7/Lower Caves | Discovered new exit (range 6) 6640 | -7/Lower Caves | Entered Data Miner 6640 | -7/Data Miner | Accompanied by 1 ally 6641 | -7/Data Miner | Discovered new exit (range 6) 6663 | -7/Data Miner | Met Data Miner 6701 | -7/Data Miner | Learned location of Section 7 (-2) 6701 | -7/Data Miner | Acquired the access code to Warlord's prototype stash 6724 | -7/Data Miner | Received God Mode back door access code from Data Miner 6767 | -7/Data Miner | Entered Proximity Caves 6767 | -6/Proximity Caves | Accompanied by 1 ally 6767 | -6/Proximity Caves | Spotted B-75 Beast 6896 | -6/Proximity Caves | Learned Factory terminal intel 6934 | -6/Proximity Caves | Attracted the attention of an 0b10 checkpoint 6986 | -6/Proximity Caves | Lost 4 parts (1n3u) 7298 | -6/Proximity Caves | Learned Factory emergency access door positions 7383 | -6/Proximity Caves | Discovered new exit (range 7) 7442 | -6/Proximity Caves | Entered Factory 7442 | -6/Factory | Evolved 2 slots: Power x1, Propulsion x1 7444 | -6/Factory | Loaded intel: 51 interactive machine locations 7445 | -6/Factory | Loaded intel: 25 terminal locations 7551 | -6/Factory | Discovered new exit (range 12) 7783 | -6/Factory | Repaired Hvy. Armor Plating 7928 | -6/Factory | Repaired Imp. Medium Armor Plating 8010 | -6/Factory | Cargo convoy interrupted 8057 | -6/Factory | Lost 3 parts (1p1u1w) 8078 | -6/Factory | Destroyed 9 combat bots 8142 | -6/Factory | First assault squad dispatched 8304 | -6/Factory | Destroyed 10 combat bots 8374 | -6/Factory | Released all parts (5) 8377 | -6/Factory | Core integrity fell below 50% 8405 | -6/Factory | Lost 23 parts (4p7n4u8w) 8463 | -6/Factory | Core integrity fell below 20% 8493 | -6/Factory | Identified exit to Lower Caves 8500 | -6/Factory | Entered Lower Caves 8619 | -6/Lower Caves | AD-0RF showed up to help 8621 | -6/Lower Caves | AD-0RF revealed a hidden path 8622 | -6/Lower Caves | Identified exit to Factory 8624 | -6/Lower Caves | Entered Factory 8624 | -5/Factory | Evolved 2 slots: Utility x2 8877 | -5/Factory | Repaired Arm. Huge Wheel 9367 | -5/Factory | Destroyed 7 combat bots 9367 | -5/Factory | Garrison activated, responded to threat 9470 | -5/Factory | Lost 8 parts (1p1n5u1w) 9491 | -5/Factory | Destroyed 9 combat bots 9541 | -5/Factory | Lost 5 parts (1p2n2w) 9662 | -5/Factory | Core integrity fell below 50% 9790 | -5/Factory | Build established: Scavenger-Mutant 9887 | -5/Factory | Discovered new exit (range 14) 10057 | -5/Factory | Repaired Imp. Medium Armor Plating 10115 | -5/Factory | Found Prototype Launcher 10115 | -5/Factory | Identified Tesla Bomb Launcher 10184 | -5/Factory | Repaired Huge Storage Unit 10275 | -5/Factory | Identified exit to Upper Caves 10276 | -5/Factory | Entered Upper Caves 10285 | -5/Upper Caves | Attracted the attention of an 0b10 outpost 10347 | -5/Upper Caves | System corruption reached 10% 10371 | -5/Upper Caves | Build established: Mutant 10396 | -5/Upper Caves | Lost 4 parts (1p2n1w) 10438 | -5/Upper Caves | Learned Factory stockpile data 10500 | -5/Upper Caves | Lost 3 parts (2u1w) 10727 | -5/Upper Caves | Discovered new exit (range 6) 10732 | -5/Upper Caves | Identified exit to Upper Caves 10734 | -5/Upper Caves | Entered another Upper Caves area 10753 | -5/Upper Caves | Build established: Scavenger-Mutant 10825 | -5/Upper Caves | Attracted the attention of an 0b10 checkpoint 10877 | -5/Upper Caves | Spotted B-75 Beast 10934 | -5/Upper Caves | Core integrity fell below 20% 10968 | -5/Upper Caves | Destroyed by B-75 Beast with Heavy Machine Gun Last Messages --------------- 10936_ System corrupted: Wave Gun failed to cycle. 10939_ Slug penetrates B-75 Beast. 10944_ System corrupted: KE Penetrator jammed. 10945_ Adv. Heat Sink destroyed. 10945_ Imp. Medium Armor Plating destroyed. 10948_ Slug penetrates Wall. 10949_ Knocked back. 10949_ Neutrino Core destroyed. 10950_ 52QP7FM6|VAK|YLTT9GKWZAJN#2E2& 10951_ Slug penetrates B-75 Beast. 10951_ B-75 Beast suffers critical hit (Destroy). 10951_ Destroyed Imp. Medium Treads. 10954_ Slug penetrates B-75 Beast. 10964_ Wave Gun destroyed. 10964_ Enh. Fission Core destroyed. 10968_ KE Penetrator destroyed. 10968_ Adv. Heat Sink destroyed. 10968_ Mak. Transmission Jammer destroyed. Map ----- +----------------------------------------------------+ | ?????????????????????????????????????????????????? | | ?????????????????????????????????????????????????? | | ?????????????????????????????????????????????????? | | ?????????????????????????????????????????????????? | | ?????????????????????????? ??????????????????????? | | ?????????????????????? ??????????????? ????? | | ????????????????????# ???????????? #????? | | ???????????????????# ????????? #????? | | ???????????????????# ??? ????? ##???? | | ??????????????????? ?? #???? #???? | | ??????????????????? ??? ##?# ?????? | | ???????????????????# ??? ## #??????? | | ???????????????????? ??? #??????? | | ???????????????????# BB#???# ???????? | | ?????????????????????? BB##?## #?#####???? | | ??????????????????????????# ### ### ##??? | | ??????????????????????????#; #??? | | ?????????????????????????#;; #??? | | ?????????????????????????# ## #??? | | ?????????????????????????# ### ##### | | ?????????????????????????# #?## #### # | | ????????????????????????## #??## #?# | | ?????????????????????####; ##???## ## #?# | | ?????????????????????# #; %#????### ## #??# | | ?????????????????????# ##???# #### | | ?????????????????????##% @% #???# ! | | ??????????????????????####;% #??# !%! | | ??????????????????????????;;;####??# % ##### | | ???????????????????????????# #?????# [ ##??## | | ???????????????????????????? #?????# #???# | | ?????????????????????????????#?????# #??## | | ???????????????????????????????????#### ###??# | | ??????????????????????????????????????# #????# | | ??????????????????????????????????????# ???# | | ??????????????????????????????????????####???##### | | ?????????????????????????????????????????????????# | | ?????????????????????????????????????????????????? | | ?????????????????????????????????????????????????? | | ?????????????????????????????????????????????????? | | ?????????????????????????????????????????????????? | | ?????????????????????????????????????????????????? | | ?????????????????????????????????????????????????? | | ?????????????????????????????????????????????????? | | ?????????????????????????????????????????????????? | | ?????????????????????????????????????????????????? | | ?????????????????????????????????????????????????? | | ?????????????????????????????????????????????????? | | ?????????????????????????????????????????????????? | | ?????????????????????????????????????????????????? | | ?????????????????????????????????????????????????? | +----------------------------------------------------+ Best States ------------- Heat Dissipation 92 Energy Generation 41 Energy Capacity 565 Matter Stores 300 Matter Capacity 300 Sight Range 16 Terrain Scan Density 210 Jamming Range 14 Cloak Strength 2 Power Amplification 20 Armor Coverage 600 Resistance: TH 10 Resistance: EX 50 Resistance: EM 15 Weapon Cycling 20 Evasion (%) 62 Targeting Accuracy 16 Target Analysis 5 Recoil Reduction 5 Kinecelleration 40 Item Schematics ----------------- Huge Storage Unit | -10/Materials | Hacked Cooling System | -9/Materials | Scanalyzed Imp. Treads | -8/Materials | Scanalyzed Rocket Launcher | -8/Materials | Scanalyzed Imp. Signal Interpreter | -8/Materials | Scanalyzed Combat Drone Bay | -7/Data Miner | Free Lgt. Regenerative Plating | -7/Data Miner | Free Cld. Cesium-ion Thruster | -7/Data Miner | Free Exp. Propulsion Shielding | -7/Data Miner | Free Cld. Plasma Cannon | -7/Data Miner | Free Antigrav System | -7/Data Miner | Free Adv. System Restoration Module | -7/Data Miner | Free Enh. Gauss Cannon | -7/Data Miner | Free Imp. Trap Scanner | -7/Data Miner | Free Imp. Component Analysis Suite | -7/Data Miner | Free Hvy. Siege Treads | -7/Data Miner | Free Robot Schematics ------------------ I-36 Angel | -7/Data Miner | Free A-15 Conveyor | -7/Data Miner | Free X-67 Chaingunner | -7/Data Miner | Free B-48 Gladiator | -7/Data Miner | Free I-47 Archangel | -7/Data Miner | Free S-27 Virus | -7/Data Miner | Free R-10 Processor | -7/Data Miner | Free Fabricated ------------ Nothing Alien Tech Used ----------------- None Achievements -------------- None Challenges ------------ None Game ------ Seed HardlightSwarmClaw Manual? 0 Play Time 02:12:08 Cumulative 61.0 hours Start 2024.08.02 @ 04:00:38 End 2024.08.02 @ 06:13:44 Sessions 1 Manual Loads 0 Difficulty Rogue Special Mode None Game No. 31 Rogue 31 Adventurer 0 Explorer 0 Win Type - Total 3 Types 1/0/0/2/0/0/0/0/0 Lore% 49 Gallery% 54 Achievement% 42 Wizard Run 0 Options --------- Layout 1 ASCII 0 Keyboard 0 Movement Numpad Keybinds 0 Fullscreen 1 Font 32/Tamsyn Map View 50x40 Zoom Use 0% Tactical HUD 1 Map Filters NONE Filters NONE Steam 1 RUN: aa712249-0414-48e8-8557-e93be5912e47